bitfinex-derivatives/quotes_SOLF0:USTF0_20250228
["timestamp","ask_amount","ask_price","bid_price","bid_amount"]
[1740748267932,1.45454545,137.5,137.3,7.4522]
[1740748268535,7.2869,137.33,137.3,3.6442]
[1740748268736,232.48,137.34,137.29,121.42315685]
[1740748268929,0.04995603,137.33,137.3,0.05144698]
[1740748269128,7.33675603,137.33,137.3,0.05144698]
[1740748269328,0.04995603,137.33,137.3,0.05144698]
[1740748270536,232.48,137.34,137.3,0.05144698]
[1740748270738,249.88,137.41,137.3,0.05144698]
[1740748271141,249.88,137.41,137.26,3.6442]
[1740748271531,7.2835,137.39,137.26,3.6442]
[1740748271736,249.88,137.41,137.26,3.6442]
[1740748272036,0.05404134,137.35,137.32,0.05359777]
[1740748272241,232.66,137.41,137.32,0.05359777]
[1740748272444,232.66,137.41,137.31,17.22]
[1740748272644,232.66,137.41,137.33,7.2864]
[1740748272845,232.66,137.41,137.31,17.22]
[1740748273439,0.05009649,137.37,137.35,0.04941138]
[1740748274741,232.66,137.41,137.35,0.04941138]
[1740748274942,232.66,137.41,137.36,17.2]
[1740748275234,17.2,137.44,137.35,0.04941138]
[1740748275743,17.2,137.44,137.31,17.2]
[1740748275946,0.05529876,137.41,137.38,0.05088151]
[1740748276746,0.05529876,137.41,137.23,3.7844]
[1740748276940,0.05529876,137.41,137.24,21.0492]
[1740748277141,7.2851,137.36,137.26,7.2903]
[1740748277340,232.82,137.37,137.27,3.8437]
[1740748277539,7.2861,137.34,137.27,3.8437]
[1740748277740,232.82,137.37,137.27,3.8437]
[1740748277942,0.04728456,137.32,137.29,0.04971888]
[1740748278252,0.04728456,137.32,137.16,7.7129]
[1740748278448,3.96068456,137.32,137.16,3.8437]
[1740748278643,17.2,137.33,137.16,3.8437]
[1740748279346,0.05122172,137.26,137.23,0.05181653]
[1740748279748,17.26,137.34,137.21,7.5557]
[1740748280048,0.05578269,137.26,137.23,0.05251374]
[1740748280345,7.2893,137.29,137.21,7.5557]
[1740748280647,0.04844925,137.26,137.23,0.04695625]
[1740748280847,7.2912,137.25,137.23,0.04695625]
[1740748281046,232.9,137.27,137.16,11.1389]
[1740748281245,0.05533354,137.25,137.23,0.04894718]
[1740748281445,0.05533354,137.25,137.16,21.1037]
[1740748281747,233.0,137.34,137.23,0.05023562]
[1740748281949,7.287,137.33,137.25,7.2908]
[1740748282144,233.0,137.35,137.26,3.8121]
[1740748282546,233.0,137.35,137.26,3.74859574]
[1740748282948,0.04916748,137.32,137.29,0.0550351]
[1740748283147,17.26,137.41,137.3,17.26]
[1740748283552,24.5428,137.41,137.33,7.2866]
[1740748283748,233.0,137.42,137.3,17.26]
[1740748284248,233.0,137.42,137.35,7.2851]
[1740748284447,0.05507478,137.37,137.35,24.5520119]
[1740748284750,233.0,137.42,137.35,24.5520119]
[1740748284952,233.0,137.42,137.35,17.2669119]
[1740748285249,233.0,137.42,137.35,17.2469119]
[1740748285447,236.6436,137.49,137.35,17.2469119]
[1740748285650,233.0,137.49,137.39,7.2834]
[1740748285952,0.0558606,137.43,137.35,17.2]
[1740748286451,0.0558606,137.43,137.38,0.05437813]
[1740748286655,0.0558606,137.43,137.34,17.16]
[1740748287049,17.18,137.47,137.34,17.16]
[1740748287248,17.18,137.47,137.27,3.5593]
[1740748287454,3.5905,137.46,137.28,17.12]
[1740748287855,0.0497736,137.38,137.36,0.04690514]
[1740748288253,7.2828,137.41,137.32,7.2867]
[1740748288452,0.04981421,137.38,137.36,0.05498143]
[1740748289351,7.2845,137.37,137.36,0.05498143]
[1740748289850,7.2845,137.37,137.29,3.8083]
[1740748290254,7.2845,137.37,137.29,11.0969]
[1740748290453,7.2857,137.35,137.29,3.8083]
[1740748290753,17.1,137.37,137.29,3.8083]
[1740748290949,0.04739047,137.33,137.31,0.04877666]
[1740748293158,7.2872,137.32,137.31,0.04877666]
[1740748294055,24.3272,137.32,137.31,0.04877666]
[1740748294958,7.2892,137.29,137.25,3.8908]
[1740748295160,17.04,137.32,137.25,3.8908]
[1740748295464,7.2895,137.28,137.11,232.98]
[1740748295758,233.0,137.29,137.14,28.3989]
[1740748296252,0.04655076,137.23,137.2,0.04801129]
[1740748296659,17.18,137.27,137.14,11.3389]
[1740748296860,0.04671083,137.23,137.2,0.05160041]
[1740748297055,17.2,137.22,137.14,3.747]
[1740748298060,17.2,137.22,137.16,7.2956]
[1740748298260,0.05101756,137.19,137.17,0.04788326]
[1740748298656,17.32,137.26,137.14,7.3548]
[1740748298864,0.04682756,137.19,137.17,0.05415351]
[1740748299161,17.32,137.26,137.14,11.2018]
[1740748299363,0.04802588,137.19,137.17,0.04693875]
[1740748299755,7.2948,137.18,137.09,3.6078]
[1740748299951,7.2948,137.18,137.17,0.04768008]
[1740748300156,7.2948,137.18,137.1,7.2985]
[1740748300361,7.2943,137.19,137.09,3.6078]
[1740748300556,7.34198659,137.19,137.13,0.05604712]
[1740748300762,7.2943,137.19,137.13,0.05604712]
[1740748300956,0.05244163,137.17,137.13,0.05604712]
[1740748301458,233.12,137.2,137.13,0.05604712]
[1740748301654,233.12,137.2,137.13,17.33604712]
[1740748301854,240.4136,137.2,137.13,17.33604712]
[1740748302058,233.12,137.2,137.13,17.33604712]
[1740748302258,233.12,137.2,137.13,0.05604712]
[1740748302459,9.98140736,137.15,137.13,0.05604712]
[1740748302662,9.98140736,137.15,137.09,3.6078]
[1740748303165,9.98140736,137.15,137.02,3.6364]
[1740748303364,17.44,137.14,136.95,14.6131]
[1740748303664,17.44,137.14,136.97,17.44]
[1740748303859,178.48782771,137.14,136.96,7.4558]
[1740748304063,0.04724159,137.06,137.03,0.0517106]
[1740748304564,0.05446582,137.06,137.03,0.04799043]
[1740748306469,40.05160448,137.06,137.03,0.04799043]
[1740748308967,0.05446582,137.06,137.03,0.04799043]
[1740748310163,7.3021,137.04,137.03,0.04799043]
[1740748310366,0.05446582,137.06,136.9,3.7048]
[1740748310561,0.05446582,137.06,136.9,3.7628]
[1740748310870,7.4674,137.07,136.9,25.0476]
[1740748311464,3.8438,137.07,136.9,25.0476]
[1740748311665,0.04854075,137.0,136.97,0.05536701]
[1740748311861,233.2,137.1,136.97,17.61536701]
[1740748312066,233.2,137.1,136.98,7.6448]
[1740748312262,233.2,137.1,137.06,7.3009]
[1740748312463,233.2,137.1,137.03,17.56]
[1740748312766,97.94386354,137.13,137.09,7.2993]
[1740748313365,0.04854393,137.12,137.09,7.2993]
[1740748313570,0.04854393,137.12,137.1,7.2986]
[1740748313767,0.04854393,137.12,137.1,0.05282651]
[1740748313969,97.94386354,137.13,137.1,0.05282651]
[1740748314169,92.03646354,137.13,137.1,0.05282651]
[1740748314469,0.0516796,137.12,137.1,0.05282651]
[1740748314771,92.03646354,137.13,137.11,7.2979]
[1740748314967,92.03646354,137.13,137.1,0.05282651]
[1740748315663,254.7789,137.17,137.1,0.05282651]
[1740748315971,0.05530652,137.13,137.1,0.05282651]
[1740748316269,7.2978,137.12,137.1,0.05282651]
[1740748316469,0.05530652,137.13,137.1,0.05282651]
[1740748317372,17.6,137.12,137.0,17.64]
[1740748317670,17.6,137.12,137.01,3.6772]
[1740748318061,17.6,137.12,137.08,39.67681764]
[1740748318572,0.05560117,137.11,137.09,0.05338356]
[1740748319378,7.35400117,137.11,137.09,0.05338356]
[1740748319673,0.05560117,137.11,137.09,0.05338356]
[1740748321668,233.44,137.17,137.09,21.21338356]
[1740748321973,233.44,137.17,137.1,3.5758]
[1740748322375,295.47346812,137.21,137.12,7.2978]
[1740748322572,288.18046812,137.21,137.11,3.7723]
[1740748322974,0.04641034,137.17,137.15,0.05397426]
[1740748324172,288.18046812,137.21,137.15,3.69397426]
[1740748324372,288.18046812,137.21,137.15,0.05397426]
[1740748325070,288.18046812,137.21,137.16,7.2956]
[1740748325269,288.18046812,137.21,137.15,0.05397426]
[1740748325270,0.04876301,137.19,137.15,0.05397426]
[1740748325474,288.18046812,137.21,137.15,198.69397426]
[1740748325775,282.27616812,137.21,137.15,195.05397426]
[1740748326276,172.20946812,137.21,137.2,7.2935]
[1740748326478,133.59726812,137.21,137.2,219.8735]
[1740748326775,94.25416812,137.21,137.2,223.5135]
[1740748327372,26.29736812,137.21,137.2,223.5135]
[1740748327576,233.4,137.4,137.2,466.22]
[1740748327770,3.7018,137.45,137.2,466.22]
[1740748327771,233.4,137.41,137.21,1.4576197]
[1740748327970,240.6825,137.41,137.21,446.4576197]
[1740748328171,257.65178359,137.41,137.21,446.4576197]
[1740748328468,257.65178359,137.41,137.22,1.30498085]
[1740748328673,257.65178359,137.41,137.3,7.2877]
[1740748328868,0.0549408,137.32,137.31,17.54]
[1740748329071,0.0549408,137.32,137.31,212.54]
[1740748329371,233.4,137.41,137.31,216.18]
[1740748329572,2.885e-05,137.33,137.32,1.45645208]
[1740748329775,31.42828359,137.45,137.35,7.2853]
[1740748329978,31.42828359,137.45,137.36,17.6]
[1740748330778,0.05530085,137.42,137.39,0.04611342]
[1740748332279,214.06727175,137.48,137.4,54.42312763]
[1740748333084,112.47979407,137.48,137.41,17.54]
[1740748333382,24.25178359,137.48,137.43,0.04930501]
[1740748333581,233.16,137.55,137.43,0.04930501]
[1740748333882,257.41178359,137.55,137.46,39.51074156]
[1740748334277,257.41178359,137.55,137.48,0.05412244]
[1740748334573,0.04872456,137.53,137.46,39.51074156]
[1740748334778,7.2792,137.47,137.46,39.51074156]
[1740748334976,3.5531,137.52,137.43,9.87768539]
[1740748335374,3.7238,137.51,137.43,9.87768539]
[1740748335582,0.05128333,137.49,137.46,0.05438964]
[1740748335780,7.2784,137.49,137.46,0.05438964]
[1740748335977,3.5531,137.52,137.46,0.05438964]
[1740748336180,233.16,137.55,137.46,195.05438964]
[1740748336379,11.77883078,137.55,137.46,195.05438964]
[1740748336578,11.77883078,137.55,137.46,195.0]
[1740748337083,0.02081393,137.52,137.49,0.04966701]
[1740748337274,17.56,137.61,137.5,17.56]
[1740748337473,29.33883078,137.61,137.5,212.56]
[1740748337878,11.77883078,137.61,137.5,212.56]
[1740748338486,11.77883078,137.61,137.54,0.04772427]
[1740748339478,7.2729,137.59,137.54,0.04772427]
[1740748339682,15.54933078,137.61,137.54,0.04772427]
[1740748340785,17.46,137.6,137.5,195.0]
[1740748341181,29.23883078,137.6,137.5,195.0]
[1740748341880,29.23883078,137.6,137.45,212.52]
[1740748342185,0.04772427,137.56,137.47,7.279]
[1740748342382,17.48,137.55,137.45,212.52]
[1740748342580,21.4082,137.55,137.51,0.04953582]
[1740748342782,33.18703078,137.55,137.45,212.52]
[1740748342983,0.04772427,137.54,137.45,212.52]
[1740748343287,7.2783,137.49,137.45,212.52]
[1740748343485,232.84,137.52,137.45,195.0]
[1740748343690,232.84,137.52,137.41,47.47079583]
[1740748343882,7.2816,137.43,137.41,47.47079583]
[1740748344279,11.77883078,137.43,137.41,47.52648519]
[1740748344483,17.46,137.49,137.41,47.52648519]
[1740748344789,29.23883078,137.49,137.41,47.52648519]
[1740748345185,0.0537651,137.46,137.41,47.52648519]
[1740748345680,19.97459133,137.49,137.41,0.05568936]
[1740748345886,7.2819,137.42,137.41,0.05568936]
[1740748346279,8.19576055,137.49,137.41,0.05568936]
[1740748346481,19.97459133,137.49,137.41,0.05568936]
[1740748346677,19.97459133,137.49,137.4,195.0]
[1740748347083,7.284,137.38,137.34,222.25768539]
[1740748347287,19.97459133,137.49,137.34,27.25768539]
[1740748347692,11.77883078,137.49,137.34,17.38]
[1740748347885,232.84,137.52,137.4,0.04972352]
[1740748348087,232.84,137.52,137.41,17.38]
[1740748349184,0.04669984,137.48,137.45,0.05411965]
[1740748349389,0.04669984,137.48,137.37,17.34]
[1740748349584,232.84,137.52,137.36,17.34]
[1740748349793,17.32,137.51,137.36,17.34]
[1740748349987,2.34340157,137.51,137.36,17.34]
[1740748350189,2.34340157,137.51,137.35,16.08558211]
[1740748350389,7.285,137.36,137.35,16.08558211]
[1740748350884,7.2847,137.37,137.35,16.08558211]
[1740748351091,7.33626172,137.37,137.35,16.08558211]
[1740748351285,0.05156172,137.37,137.35,16.08558211]
[1740748351487,7.285,137.36,137.35,0.04881926]
[1740748352388,7.2856,137.35,137.32,9.87768539]
[1740748352593,0.05156172,137.37,137.32,9.87768539]
[1740748353603,0.05156172,137.37,137.33,0.0552669]
[1740748354304,0.05156172,137.37,137.33,17.2552669]
[1740748354513,0.05156172,137.37,137.33,212.2552669]
[1740748354799,0.05156172,137.37,137.33,0.0552669]
[1740748356105,7.2854,137.36,137.33,0.0552669]
[1740748356707,7.22113795,137.36,137.33,0.0552669]
[1740748356905,0.05156172,137.37,137.33,0.0552669]
[1740748358103,7.2855,137.36,137.33,0.0552669]
[1740748358304,0.05156172,137.37,137.29,9.87768539]
[1740748358511,17.21156172,137.37,137.29,9.87768539]
[1740748358813,7.2871,137.33,137.29,9.87768539]
[1740748359202,17.16,137.37,137.29,9.87768539]
[1740748359711,17.16,137.37,137.32,0.04863608]
[1740748359712,0.05236262,137.34,137.32,0.04863608]
[1740748361607,7.27344978,137.34,137.32,0.04863608]
[1740748361910,17.16,137.37,137.31,39.51074156]
[1740748362110,7.2872,137.32,137.31,39.51074156]
[1740748362311,17.16,137.37,137.31,33.61514156]
[1740748362709,7.2861,137.34,137.33,60.64628015]
[1740748362909,7.2861,137.34,137.33,54.75138015]
[1740748363111,7.2861,137.34,137.33,48.85688015]
[1740748363307,17.16,137.37,137.33,48.85688015]
[1740748363513,17.16,137.37,137.33,42.96278015]
[1740748363708,7.2861,137.34,137.33,42.96278015]
[1740748363912,3.5848,137.41,137.33,42.96278015]
[1740748364316,7.2861,137.35,137.3,7.2881]
[1740748364608,7.2861,137.35,137.31,0.05497766]
[1740748364915,0.05157107,137.34,137.33,7.2863]
[1740748365114,7.2844,137.38,137.33,7.2863]
[1740748365614,7.2847,137.37,137.32,7.287]
[1740748365920,236.553,137.42,137.32,7.287]
[1740748366412,0.05506875,137.38,137.36,0.05031858]
[1740748366619,236.553,137.42,137.36,0.05031858]
[1740748366620,232.86,137.42,137.36,17.01031858]
[1740748366810,236.7684,137.49,137.36,17.01031858]
[1740748367011,16.94,137.48,137.36,17.01031858]
[1740748367212,236.7684,137.49,137.36,17.01031858]
[1740748367410,20.8572,137.48,137.36,17.01031858]
[1740748367609,7.2825,137.41,137.36,17.01031858]
[1740748367821,7.32813496,137.41,137.36,17.01031858]
[1740748368920,7.2829,137.4,137.36,17.01031858]
[1740748369316,7.2844,137.38,137.36,0.05031858]
[1740748369621,0.04563496,137.41,137.33,195.0]
[1740748369819,3.6239,137.4,137.32,79.02148312]
[1740748370021,7.286,137.35,137.32,79.02148312]
[1740748370923,0.04871713,137.35,137.32,79.07151146]
[1740748371625,7.2866,137.33,137.32,79.07151146]
[1740748371825,7.2866,137.33,137.32,67.28531146]
[1740748372725,7.2866,137.33,137.32,35.99431146]
[1740748372922,7.2866,137.33,137.32,0.05002834]
[1740748373118,0.04871713,137.35,137.25,7.2909]
[1740748373516,14.5647,137.42,137.23,16.8]
[1740748373718,119.92723524,137.67,137.33,14.5723]
[1740748373918,18.44,137.66,137.34,29.7119]
[1740748374117,1.45285485,137.66,137.34,11.2719]
[1740748374425,0.04792347,137.51,137.49,0.04942432]
[1740748374630,233.10792347,137.51,137.35,19.89613396]
[1740748374925,233.06,137.51,137.35,19.89613396]
[1740748375127,233.06,137.51,137.35,18.44]
[1740748375426,18.46,137.5,137.35,18.44]
[1740748375730,25.7377,137.5,137.35,24.18337059]
[1740748376027,0.05148531,137.44,137.41,0.04631182]
[1740748376326,18.46,137.5,137.35,24.18337059]
[1740748376524,0.04655752,137.44,137.41,0.05174984]
[1740748377027,0.05256811,137.44,137.41,0.05280348]
[1740748377522,18.41256811,137.44,137.41,0.05280348]
[1740748379521,0.05256811,137.44,137.41,0.05280348]
[1740748380727,7.33346811,137.44,137.41,0.05280348]
[1740748381029,0.05256811,137.44,137.41,0.05280348]
[1740748381732,7.2813,137.43,137.41,0.05280348]
[1740748381927,18.22,137.42,137.41,0.05280348]
[1740748382524,21.86,137.42,137.29,18.22]
[1740748382721,233.02,137.41,137.3,3.6571]
[1740748383728,0.04830482,137.37,137.34,0.04965832]
[1740748384828,233.02,137.41,137.34,0.04965832]
[1740748386138,0.05320714,137.39,137.35,18.2]
[1740748386338,233.02,137.41,137.36,3.6324]
[1740748387536,0.04955825,137.4,137.37,0.04703888]
[1740748387937,233.02,137.41,137.37,0.04703888]
[1740748389139,0.05182403,137.4,137.37,0.04703888]
[1740748389336,7.284,137.38,137.37,0.04703888]
[1740748389536,0.05182403,137.4,137.37,0.04703888]
[1740748389734,7.2803,137.45,137.37,0.04703888]
[1740748389930,233.0,137.48,137.35,213.2]
[1740748390334,233.0,137.48,137.35,195.0]
[1740748390835,0.04531544,137.43,137.4,0.05366416]
[1740748392140,7.2822,137.42,137.4,0.05366416]
[1740748392340,0.04531544,137.43,137.4,0.05366416]
[1740748392740,7.32701544,137.43,137.4,0.05366416]
[1740748393142,0.04531544,137.43,137.4,0.05366416]
[1740748396044,7.2824,137.41,137.4,0.05366416]
[1740748398336,0.04531544,137.43,137.33,7.129]
[1740748398744,18.06,137.44,137.33,7.129]
[1740748399143,7.2861,137.35,137.33,7.129]
[1740748399345,232.98,137.38,137.33,7.129]
[1740748399534,0.04662198,137.35,137.33,7.18452047]
[1740748400241,232.98,137.38,137.33,7.18452047]
[1740748400943,232.98,137.38,137.34,7.286]
[1740748401142,233.0,137.45,137.34,17.98]
[1740748401343,7.2818,137.43,137.37,7.2844]
[1740748401540,0.04701189,137.41,137.38,3.83427787]
[1740748401843,7.2818,137.43,137.38,3.83427787]
[1740748402045,233.0,137.45,137.38,3.83427787]
[1740748402445,7.2816,137.43,137.38,3.83427787]
[1740748402647,233.0,137.45,137.38,3.83427787]
[1740748403950,7.2829,137.41,137.38,3.83427787]
[1740748404550,7.282,137.42,137.38,3.83427787]
[1740748405544,7.2816,137.43,137.38,3.83427787]
[1740748406748,7.2808,137.44,137.38,3.83427787]
[1740748406949,233.0,137.45,137.38,3.83427787]
[1740748407251,233.0,137.45,137.39,7.2831]
[1740748407652,233.0,137.45,137.39,17.8]
[1740748407853,233.0,137.45,137.4,7.2828]
[1740748408450,233.0,137.45,137.41,0.0503422]
[1740748409247,7.2818,137.43,137.41,0.0503422]
[1740748409445,233.0,137.45,137.41,0.0503422]
[1740748410348,250.76,137.45,137.34,198.7807]
[1740748410656,250.76,137.45,137.34,3.7807]
[1740748411151,250.76,137.45,137.35,7.2855]
[1740748411453,250.76,137.45,137.34,3.7807]
[1740748411654,250.76,137.45,137.39,0.05019199]
[1740748411655,0.04802312,137.41,137.39,0.05019199]
[1740748412151,0.04802312,137.41,137.39,7.33359199]
[1740748412958,0.04802312,137.41,137.4,7.2829]
[1740748413359,0.04802312,137.41,137.39,0.05019199]
[1740748414054,7.2829,137.4,137.39,0.05019199]
[1740748414457,7.2829,137.4,137.39,9.199e-05]
[1740748415061,14.7587,137.4,137.39,9.199e-05]
[1740748415652,18.5828,137.4,137.39,9.199e-05]
[1740748416651,7.2856,137.35,137.34,6.80114932]
[1740748416854,240.2856,137.35,137.34,6.80114932]
[1740748417466,240.2856,137.35,137.34,4.932e-05]
[1740748418170,233.0,137.35,137.33,0.05215147]
[1740748418468,7.2861,137.34,137.33,0.05215147]
[1740748420067,7.2861,137.34,137.33,5.147e-05]
[1740748420668,10.9261,137.34,137.33,5.147e-05]
[1740748421365,7.2861,137.34,137.33,5.147e-05]
[1740748422770,10.9261,137.34,137.33,5.147e-05]
[1740748424071,14.5733,137.33,137.2,299.33998131]
[1740748424272,21.0089,137.32,137.2,292.04668131]
[1740748424571,24.9086,137.32,137.2,292.04668131]
[1740748425071,7.2939,137.2,137.17,14.5878]
[1740748425271,7.2939,137.2,137.17,7.2931]
[1740748425572,233.14,137.23,137.17,0.05581757]
[1740748425772,0.05160169,137.2,137.17,0.05581757]
[1740748425973,7.34530169,137.2,137.17,0.05581757]
[1740748426168,0.05160169,137.2,137.17,0.05581757]
[1740748426369,233.14,137.3,137.17,21.01581757]
[1740748426569,233.14,137.3,137.17,212.32]
[1740748427566,0.05315833,137.25,137.22,0.05267157]
[1740748428167,0.05315833,137.25,137.24,7.2914]
[1740748428472,0.05315833,137.25,137.22,0.05267157]
[1740748428972,233.14,137.3,137.22,17.31267157]
[1740748429173,233.14,137.3,137.23,3.5751]
[1740748429470,240.4284,137.3,137.23,3.5751]
[1740748429672,233.14,137.3,137.23,3.5751]
[1740748429872,7.2896,137.28,137.23,3.5751]
[1740748430074,7.34081792,137.28,137.25,0.05449774]
[1740748430476,0.05121792,137.28,137.25,0.05449774]
[1740748431475,7.2903,137.26,137.25,0.05449774]
[1740748432172,0.05121792,137.28,137.25,0.05449774]
[1740748432173,7.2902,137.27,137.25,0.05449774]
[1740748432370,0.05121792,137.28,137.25,0.05449774]
[1740748432774,7.2903,137.26,137.25,0.05449774]
[1740748432974,0.05121792,137.28,137.25,0.05449774]
[1740748433474,7.2902,137.27,137.25,0.05449774]
[1740748433669,0.05121792,137.28,137.25,0.05449774]
[1740748434475,7.34101792,137.28,137.25,0.05449774]
[1740748434677,0.05121792,137.28,137.25,0.05449774]
[1740748441973,7.2903,137.26,137.25,0.05449774]
[1740748446688,16.87121792,137.28,137.18,3.903]
[1740748446888,3.9309,137.27,137.18,3.903]
[1740748447183,7.294,137.2,137.18,3.903]
[1740748447386,3.9309,137.27,137.18,3.903]
[1740748447581,3.9309,137.27,137.15,3.8398]
[1740748447788,0.04987608,137.24,137.21,7.054e-05]
[1740748448086,16.78,137.23,137.21,7.054e-05]
[1740748448282,7.2925,137.22,137.21,7.054e-05]
[1740748448689,10.9325,137.22,137.21,7.054e-05]
[1740748449287,7.2925,137.22,137.21,7.054e-05]
[1740748449989,10.9325,137.22,137.21,7.054e-05]
[1740748450293,7.2925,137.22,137.21,7.054e-05]
[1740748450483,10.9325,137.22,137.21,7.054e-05]
[1740748450685,7.2925,137.22,137.21,7.054e-05]
[1740748450886,10.9325,137.22,137.21,7.054e-05]
[1740748451889,14.86,137.22,137.21,7.054e-05]
[1740748452290,7.5675,137.22,137.11,2.59865289]
[1740748452494,7.2978,137.12,137.11,2.59865289]
[1740748453692,233.32,137.12,137.1,9.291e-05]
[1740748453991,7.2983,137.11,137.1,9.291e-05]
[1740748460899,10.9383,137.11,137.1,9.291e-05]
[1740748461591,7.3031,137.02,137.01,3.6683]
[1740748461893,16.8,137.06,137.01,3.6683]
[1740748462093,7.3024,137.04,137.01,3.6683]
[1740748462293,16.82,137.1,137.01,3.6683]
[1740748462488,16.82,137.1,137.01,10.9715]
[1740748462701,16.82,137.1,137.01,3.6683]
[1740748462996,0.05605595,137.07,137.04,0.05107179]
[1740748463798,250.12,137.12,137.04,0.05107179]
[1740748464200,7.3015,137.05,137.04,0.05107179]
[1740748464500,250.12,137.12,137.04,0.05107179]
[1740748464710,233.32,137.12,137.04,0.05107179]
[1740748464999,0.04854387,137.09,137.04,0.05107179]
[1740748465199,233.32,137.12,137.04,0.05107179]
[1740748465389,227.4152,137.12,137.08,7.2998]
[1740748465592,198.006,137.12,137.09,3.842]
[1740748465788,237.3403,137.19,137.09,3.842]
[1740748466397,233.5,137.19,137.09,3.842]
[1740748466601,0.05078459,137.15,137.13,0.04790644]
[1740748467992,233.5,137.19,137.13,0.04790644]
[1740748468203,233.5,137.19,137.13,16.74790644]
[1740748469199,0.05479526,137.17,137.13,16.74790644]
[1740748469503,0.05479526,137.17,137.14,7.2966]
[1740748469697,0.05479526,137.17,137.13,16.74790644]
[1740748472303,0.05479526,137.17,137.13,0.04790644]
[1740748472798,7.2967,137.14,137.13,0.04790644]
[1740748473909,16.56,137.16,137.05,3.8947]
[1740748473910,20.3526,137.16,137.05,3.8947]
[1740748474110,3.6872,137.13,137.03,195.0]
[1740748474405,7.3007,137.07,137.02,40.29152829]
[1740748474710,3.6872,137.13,137.02,47.59422829]
[1740748474910,7.3007,137.07,137.02,47.59422829]
[1740748475106,0.05015318,137.06,137.03,0.04623972]
[1740748476506,0.05015318,137.06,137.03,7.34873972]
[1740748478106,0.05015318,137.06,137.03,0.04623972]
[1740748478809,7.3016,137.05,137.03,0.04623972]
[1740748480008,7.3021,137.04,137.03,0.04623972]
[1740748480706,0.05015318,137.06,136.95,3.8299]
[1740748480902,0.05015318,137.06,136.96,7.3062]
[1740748481109,16.38,137.06,136.96,7.3062]
[1740748481305,7.3039,137.01,136.96,7.3062]
[1740748481910,7.35215905,137.0,136.97,0.05078896]
[1740748482204,7.35215905,137.0,136.95,11.1366]
[1740748482404,7.3039,137.01,136.95,11.1366]
[1740748482606,0.05222002,137.0,136.97,0.05541927]
[1740748482903,7.35642002,137.0,136.97,0.05541927]
[1740748483207,0.05222002,137.0,136.97,0.05541927]
[1740748485005,0.05222002,137.0,136.97,7.36111927]
[1740748485510,0.05222002,137.0,136.97,0.05541927]
[1740748486110,7.35652002,137.0,136.97,0.05541927]
[1740748486309,0.05222002,137.0,136.97,0.05541927]
[1740748488710,0.05222002,137.0,136.99,7.3047]
[1740748488911,3.7206,137.08,136.97,0.05541927]
[1740748489108,7.3012,137.06,137.0,7.3038]
[1740748489613,3.7206,137.08,137.0,7.3039]
[1740748490010,0.05335228,137.05,137.03,0.05516109]
[1740748490210,0.05335228,137.05,136.95,3.8299]
[1740748490403,233.44,137.09,137.03,0.05228468]
[1740748490605,0.05570391,137.03,137.0,16.12]
[1740748490805,240.7394,137.09,137.05,0.05550595]
[1740748491013,233.44,137.09,137.01,3.7366]
[1740748491808,233.44,137.09,137.05,7.3012]
[1740748492013,0.04101748,137.06,137.04,0.05550056]
[1740748492212,233.44,137.09,137.04,0.05550056]
[1740748492612,233.44,137.09,137.06,7.3006]
[1740748493113,233.44,137.09,137.05,7.3015]
[1740748493313,233.44,137.09,137.04,0.05550056]
[1740748493715,7.3013,137.06,137.04,0.05550056]
[1740748493914,249.52,137.09,137.04,0.05550056]
[1740748494218,7.3015,137.05,137.04,0.05550056]
[1740748494413,7.7221,137.08,136.97,16.06]
[1740748494617,0.04901977,137.06,136.97,16.06]
[1740748494914,7.7221,137.08,136.97,16.06]
[1740748495209,7.3015,137.05,136.97,16.06]
[1740748495718,0.05158091,137.02,137.0,0.05374601]
[1740748496415,7.7221,137.08,137.0,0.05374601]
[1740748496708,7.3001,137.08,137.03,7.3022]
[1740748496915,233.58,137.16,137.03,195.0]
[1740748497717,233.58,137.16,137.08,0.05247488]
[1740748497914,233.58,137.16,137.03,7.3025]